Cogmind - Beta 10.1 *** ADVENTURER MODE // 2020.10.13 @ 14:36:22 Player: Vetulus Result: Self-destructed Performance ------------- Evolutions (2) 1000 Regions Visited (4) 800 Robots Destroyed (32) 160 Value Destroyed (956) 956 Prototype IDs (0) 0 Alien Tech Used (0) 0 Bonus (35) 35 TOTAL SCORE: 2951 Bonus ------- Follower Combat Kills 35 Cogmind --------- Core Integrity 535/550 Matter 276/300 Energy 183/250 System Corruption 0% Temperature Cool (0) Movement Walking (150) Ox1 Location -8/Materials Parts ------- > --- POWER (1) -------- Ion Engine > --- PROPULSION (4) --- Improved Aluminum Leg Improved Aluminum Leg Carbon-fiber Leg Carbon-fiber Leg > --- UTILITY (4) ------ Cooling System Large Storage Unit High-capacity Storage Unit Shield Generator > --- WEAPON (2) ------- Minigun Heavy Battle Rifle > --- INVENTORY (18) --- Aluminum Leg Aluminum Leg Aluminum Leg Aluminum Leg Aluminum Leg Small Storage Unit EM Pulse Gun Particle Gun Proton Missile Launcher Rocket Launcher Peak State ------------ > --- POWER ------------ Ion Engine > --- PROPULSION ------- Improved Aluminum Leg Improved Aluminum Leg Carbon-fiber Leg Carbon-fiber Leg > --- UTILITY ---------- Cooling System Small Storage Unit High-capacity Storage Unit Shield Generator > --- WEAPON ----------- Minigun Heavy Battle Rifle > --- INVENTORY -------- Aluminum Leg Aluminum Leg Aluminum Leg Aluminum Leg Aluminum Leg EM Pulse Gun Particle Gun Proton Missile Launcher Rocket Launcher [Rating: 25] Favorites ----------- Power Ion Engine Engine Ion Engine Propulsion Aluminum Leg Leg Aluminum Leg Utility Shield Generator Device Shield Generator Storage High-capacity Storage Unit Weapon Particle Gun Energy Gun Particle Gun Ballistic Gun Heavy Battle Rifle Build | -11 -10 -9 -9 -8 ------- Run | Scr Mat Mat Min Mat Slots Evolved 4 | . . 2 . 2 Power . | . . . . . Propulsion 2 | . . 2 . . Utility 2 | . . . . 2 Weapon . | . . . . . Parts Attached 34 | 6 3 14 5 6 Power 2 | 1 1 . . . Engine 2 | 1 1 . . . Core . | . . . . . Reactor . | . . . . . Propulsion 15 | 2 . 9 3 1 Treads . | . . . . . Leg 15 | 2 . 9 3 1 Wheel . | . . . . . Hover . | . . . . . Flight . | . . . . . Utility 9 | 1 2 2 . 4 Device 5 | . 1 2 . 2 Storage 4 | 1 1 . . 2 Processor . | . . . . . Hackware . | . . . . . Protection . | . . . . . Artifact . | . . . . . Weapon 8 | 2 . 3 2 1 Energy Gun 2 | . . 2 . . Energy Cannon . | . . . . . Ballistic Gun 6 | 2 . 1 2 1 Ballistic Cannon . | . . . . . Launcher . | . . . . . Special Weapon . | . . . . . Impact Weapon . | . . . . . Slashing Weapon . | . . . . . Piercing Weapon . | . . . . . Special Melee Weapon . | . . . . . Unidentified Prototypes . | . . . . . Parts Lost 1 | . . 1 . . Power . | . . . . . Propulsion . | . . . . . Utility 1 | . . 1 . . Weapon . | . . . . . Highest Loss Streak 1 | . . 1 . . Average Slot Usage (%) 97 | . 97 96 99 94 Engine 11 | . 14 11 11 9 Leg 38 | . 28 41 44 34 Device 11 | . 11 11 11 16 Storage 12 | . 14 11 11 15 Energy Gun 5 | . . 6 11 . Ballistic Gun 16 | . 28 15 10 17 Naked Turns . | . . . . . Heaviest Build 64 | 12 42 45 46 64 Greatest Support 56 | 20 20 46 56 56 Greatest Overweight (x) 2 | 1 2 2 . 1 Average Overweight (x) . | . . . . . Largest Inventory Capacity 18 | 6 12 12 12 18 Average Capacity 11 | 4 8 12 12 13 Most Carried 12 | 4 6 12 12 11 Average Carried 8 | 1 4 9 10 9 Final Capacity 18 | 6 12 12 12 18 Final Carried 11 | 2 6 11 10 10 Class Distribution -------------------- 51% | Mutant 48% | Scavenger-Mutant Dominant Class ---------------- Mutant | -10/Materials Scavenger-Mutant | -9/Materials Scavenger-Mutant | -9/Mines Mutant | -8/Materials Resources | -11 -10 -9 -9 -8 ----------- Run | Scr Mat Mat Min Mat Matter Collected 878 | 238 98 276 83 183 Remotely . | . . . . . Salvage Created 1071 | . 194 483 92 302 Parts 58 | . 10 28 10 10 Haulers Intercepted . | . . . . . Recyclers Shooed . | . . . . . Parts Field Recycled . | . . . . . Retrieved Matter . | . . . . . Parts Self-Destructed . | . . . . . Prevented . | . . . . . Kills | -11 -10 -9 -9 -8 ------- Run | Scr Mat Mat Min Mat Combat Hostiles Destroyed 30 | . 4 11 7 8 Guns 30 | . 4 11 7 8 Classes Destroyed 6 | . 2 2 1 1 Operator 1 | . . 1 . . Watcher 1 | . 1 . . . Swarmer 10 | . . . 7 3 Grunt 17 | . 4 9 . 4 Duelist 2 | . . 2 . . Sentry 1 | . . . . 1 Best Kill Streak 4 | . 3 3 4 3 Combat Bots Only 4 | . 3 3 4 3 Max Kills in Single Turn 1 | . 1 1 1 1 Gunslinging . | . . . . . Exploded . | . . . . . Melee . | . . . . . Uniques/NPCs Destroyed . | . . . . . Combat | -11 -10 -9 -9 -8 -------- Run | Scr Mat Mat Min Mat Damage Taken 682 | . 135 260 71 216 Core 80 | . 25 40 . 15 Absorbed by Shields 262 | . 52 97 31 82 Core Remaining (%) 93 | 100 90 . 90 . Volleys Fired 75 | . 14 30 10 21 Largest 2 | . 2 2 2 2 Hottest 98 | . 40 88 98 58 Shots Fired 150 | . 28 60 20 42 Gun 150 | . 28 60 20 42 Cannon . | . . . . . Launcher . | . . . . . Special . | . . . . . Kinetic 132 | . 28 52 10 42 Thermal 18 | . . 8 10 . Explosive . | . . . . . Electromagnetic . | . . . . . Robot Hit Streak 35 | . 26 35 10 12 Robot Miss Streak 1 | . . 1 1 1 Penetration Max . | . . . . . Secondary Targets 1 | . . 1 . . Max Gunslinging Chain 1 | . . 1 . . Shots Hit Robots 122 | . 26 49 11 36 Core Hits 58 | . 13 24 7 14 Critical Hits 2 | . . 2 . . Critical Kills 1 | . . 1 . . Critical Parts Destroyed 1 | . . 1 . . Melee Attacks . | . . . . . Impact . | . . . . . Slashing . | . . . . . Piercing . | . . . . . Sneak Attacks . | . . . . . Combat Hostiles . | . . . . . Follow-up Attacks . | . . . . . Damage Inflicted 1772 | . 279 645 181 667 Guns 1772 | . 279 645 181 667 Cannons . | . . . . . Explosions . | . . . . . Melee . | . . . . . Ramming . | . . . . . Kinetic 1581 | . 279 570 65 667 Thermal 191 | . . 75 116 . Explosive . | . . . . . Electromagnetic . | . . . . . Impact . | . . . . . Slashing . | . . . . . Piercing . | . . . . . Highest Corruption . | . . . . . Average Corruption . | . . . . . Corruption Purged . | . . . . . Overload Shots . | . . . . . Overflow Damage . | . . . . . Projectiles . | . . . . . Explosions . | . . . . . Melee . | . . . . . Knockbacks . | . . . . . Impact . | . . . . . Kinetic . | . . . . . Secondary . | . . . . . Self-Inflicted Damage . | . . . . . Shots . | . . . . . Rammed . | . . . . . Targets Rammed . | . . . . . Kicked . | . . . . . Crushed . | . . . . . Highest Temperature 108 | . 24 54 108 . Average Temperature 26 | . 9 16 41 . Received Heat Transfer 302 | . 90 122 . 90 Siege Activations . | . . . . . Robots Corrupted . | . . . . . Combat Hostiles . | . . . . . Parts Fried . | . . . . . Impact Corruptions . | . . . . . Robots Melted . | . . . . . Combat Hostiles . | . . . . . Parts Melted . | . . . . . Heat Transferred 444 | . . 185 259 . Parts Sabotaged . | . . . . . Parts Stolen . | . . . . . Parts Stripped . | . . . . . Power Chain Reactions . | . . . . . Missiles Intercepted . | . . . . . Alert | -11 -10 -9 -9 -8 ------- Run | Scr Mat Mat Min Mat Peak Influence 222 | . 123 210 114 222 Initial 9 | . . 7 9 1 Average 38 | . 31 50 27 64 Maximum Alert Level 1 | . . 1 . 1 Low Security (%) 96 | 100 100 92 100 91 Level 1 3 | . . 7 . 8 Level 2 . | . . . . . Level 3 . | . . . . . Level 4 . | . . . . . Level 5 . | . . . . . High Security . | . . . . . Max Security . | . . . . . Squads Dispatched 4 | . . 4 . . Investigation 1 | . . 1 . . Extermination . | . . . . . Reinforcement 3 | . . 3 . . Assault . | . . . . . Garrison . | . . . . . Intercept . | . . . . . Construction Impeded . | . . . . . Haulers Reinforced . | . . . . . Stealth | -11 -10 -9 -9 -8 --------- Run | Scr Mat Mat Min Mat Distress Signals 2 | . . . . 2 Communications Jammed . | . . . . . Distress Signals . | . . . . . Times Spotted 52 | . 7 19 10 16 Peak Tracking Total 8 | . 5 8 4 6 Tactical Retreats 4 | . . . 3 1 Traps | -11 -10 -9 -9 -8 ------- Run | Scr Mat Mat Min Mat Traps Triggered 1 | . . . 1 . Indirectly . | . . . . . Trap Hack Attempts . | . . . . . Triggered . | . . . . . Disarmed . | . . . . . Reprogrammed . | . . . . . Reused . | . . . . . Traps Extracted . | . . . . . Installed . | . . . . . Triggered . | . . . . . Machines | -11 -10 -9 -9 -8 ---------- Run | Scr Mat Mat Min Mat Machines Disabled 1 | . . . 1 . Max in Single Turn 1 | . . . 1 . Machines Sabotaged . | . . . . . Garrisons Compromised . | . . . . . Overloaded Fab Kills . | . . . . . Fab Network Shutdowns . | . . . . . Hacking | -11 -10 -9 -9 -8 --------- Run | Scr Mat Mat Min Mat Machines Accessed 10 | . 3 3 3 1 Terminals 7 | . 3 2 2 . Fabricators . | . . . . . Repair Stations 2 | . . 1 . 1 Recycling Units . | . . . . . Scanalyzers . | . . . . . Garrison Access . | . . . . . Total Hacks 24 | . 8 7 4 5 Successful 17 | . 5 5 3 4 Failed 7 | . 3 2 1 1 Catastrophic 1 | . 1 . . . Database Lockouts . | . . . . . Manual 14 | . 6 5 3 . Terminals 16 | . 8 5 3 . Fabricators . | . . . . . Repair Stations 7 | . . 2 . 5 Recycling Units . | . . . . . Scanalyzers . | . . . . . Garrison Access . | . . . . . Terminal Hacks 11 | . 5 3 3 . Open Door 1 | . . . 1 . Level Access Points 1 | . 1 . . . Branch Access Points 1 | . 1 . . . Unreport Threat 7 | . 2 3 2 . Zone Layout 1 | . 1 . . . Fabricator Hacks . | . . . . . Repair Station Hacks 6 | . . 2 . 4 Scan Component 3 | . . 1 . 2 Repair 3 | . . 1 . 2 Recycling Unit Hacks . | . . . . . Scanalyzer . | . . . . . Garrison Access Hacks . | . . . . . Unauthorized Hacks . | . . . . . Terminals . | . . . . . Fabricators . | . . . . . Repair Stations . | . . . . . Recycling Units . | . . . . . Scanalyzers . | . . . . . Garrison Access . | . . . . . Data Cores Recovered . | . . . . . Used . | . . . . . Hacking Detections 7 | . 2 3 2 . Full Trace Events 1 | . . 1 . . Feedback Events . | . . . . . Feedback Blocked . | . . . . . Robot Schematics Acquired . | . . . . . Robots Built . | . . . . . Matter . | . . . . . Time . | . . . . . Total Robot Build Rating . | . . . . . Part Schematics Acquired . | . . . . . Parts Built . | . . . . . Matter . | . . . . . Time . | . . . . . Total Part Build Rating . | . . . . . Parts Repaired 3 | . . 1 . 2 Time 96 | . . 32 . 64 Parts Recycled . | . . . . . Recycled Matter . | . . . . . Retrieved Matter . | . . . . . Retrieved Components . | . . . . . Parts Scanalyzed . | . . . . . Part Schematics Acquired . | . . . . . Parts Damaged . | . . . . . Bothacking | -11 -10 -9 -9 -8 ------------ Run | Scr Mat Mat Min Mat Used RIF Installer . | . . . . . Robots Hacked . | . . . . . Non-combat . | . . . . . Combat . | . . . . . Robot Hacks Applied . | . . . . . Relay Couplers Released . | . . . . . Robots Rewired . | . . . . . Allies Hacked . | . . . . . Hacks Repelled . | . . . . . Allies | -11 -10 -9 -9 -8 -------- Run | Scr Mat Mat Min Mat Total Allies 3 | . . . 3 . Largest Group 3 | . . . 3 2 Highest-Rated Group 40 | . . . 40 24 Highest-Rated Ally 16 | . . . 16 16 Total Orders 9 | . . . 9 . STAY 4 | . . . 4 . ROAM 1 | . . . 1 . FOLLOW 4 | . . . 4 . Ally Attacks 9 | . . . 4 5 Total Damage 96 | . . . 45 51 Kills 3 | . . . 2 1 Allies Corrupted . | . . . . . Allies Melted . | . . . . . Intel | -11 -10 -9 -9 -8 ------- Run | Scr Mat Mat Min Mat Robot Analysis Total . | . . . . . Derelict Logs Recovered . | . . . . . Drone Launches . | . . . . . Drone Recoveries . | . . . . . Exploration | -11 -10 -9 -9 -8 ------------- Run | Scr Mat Mat Min Mat Turns Passed 2662 | 98 541 884 881 258 Spaces Moved 1541 | 71 300 461 636 73 Core 8 | 8 . . . . Treads . | . . . . . Legs 1533 | 63 300 461 636 73 Wheels . | . . . . . Hover . | . . . . . Flight . | . . . . . Fastest Speed 50 | 50 120 120 120 120 Average Speed 131 | 114 143 144 120 120 Slowest Speed 180 | 120 180 180 120 150 Overloaded Moves . | . . . . . Propulsion Burnouts . | . . . . . Robots Hopped . | . . . . . Cave-ins Triggered . | . . . . . Exploration Rate (%) 34 | 4 43 35 84 6 Regions Visited 4 Branch Regions 1 Pre-discovered Areas . | . . . . . Known Exits Taken 1 | . 1 . . . Unknown Exits Taken 3 | 1 . 1 1 . Scrap Searched 1 | . . . 1 . Spaces Dug . | . . . . . Terrain Destroyed 2 | . . . . 2 Melee . | . . . . . Projectile 2 | . . . . 2 AOE . | . . . . . Terrain Rammed . | . . . . . Walls Destroyed . | . . . . . Machines Disabled . | . . . . . Actions | -11 -10 -9 -9 -8 --------- Run | Scr Mat Mat Min Mat Total 2030 | 87 386 618 735 204 Wait 334 | 3 65 95 71 100 Move 1537 | 70 299 460 635 73 Hop . | . . . . . Pick Up 38 | 8 5 14 7 4 Fast Attach . | . . . . . Attach 16 | 6 1 4 1 4 Detach . | . . . . . Swap 18 | . 2 10 4 2 Drop 12 | . . 5 7 . Fire 75 | . 14 30 10 21 Melee . | . . . . . Ram . | . . . . . Kick . | . . . . . Crush . | . . . . . Escape Stasis . | . . . . . Rewire . | . . . . . Trap . | . . . . . Miscellaneous . | . . . . . Route ------- -11/Scrapyard -10/Materials (discovered 5 exits: *Mat x3 / Min x2) -9/Materials -9/Mines -8/Materials History --------- Turn | Location | Event 14 | -11/Scrapyard | Discovered new exit (range 15) 99 | -11/Scrapyard | Entered Materials 300 | -10/Materials | Build established: Mutant 395 | -10/Materials | Identified exit to Materials 416 | -10/Materials | Identified exit to Mines 640 | -10/Materials | Entered another Materials area 640 | -9/Materials | Evolved 2 slots: Propulsion x2 1093 | -9/Materials | Repaired Particle Gun 1283 | -9/Materials | Build established: Scavenger-Mutant 1451 | -9/Materials | Discovered new exit (range 16) 1524 | -9/Materials | Entered Mines 1582 | -9/Mines | A weapon hastily lodged in a ceiling crevice suddenly fell to the ground 1599 | -9/Mines | Assembled infested the area 1604 | -9/Mines | Assisted by a Guerilla fighting off Assembled 1987 | -9/Mines | Assisted by bots powering up and referring to "LRC-V3" 2100 | -9/Mines | Received a Rocket Launcher from a helpful Derelict 2139 | -9/Mines | Met a Derelict who couldn't figure out how to use a Trap Extractor 2385 | -9/Mines | Discovered new exit (range 8) 2405 | -9/Mines | Entered Materials 2405 | -8/Materials | Accompanied by 2 allies 2405 | -8/Materials | Evolved 2 slots: Utility x2 2459 | -8/Materials | Repaired Imp. Aluminum Leg 2510 | -8/Materials | Repaired Shield Generator 2570 | -8/Materials | Build established: Mutant 2663 | -8/Materials | Self-destructed Last Messages --------------- 02605_ W-25 Informer distress signal alerts nearby ally. 02605_ K-01 Serf collects debris. 02605_ Acquired 20 matter. 02609_ K-01 Serf collects debris. 02611_ S-10 Pest destroyed. 02611_ R-06 Scavenger collects Flight Unit. 02615_ K-01 Serf collects debris. 02618_ Destroyed Imp. Heat Sink. 02619_ K-01 Serf collects debris. 02619_ U-05 Engineer destroyed. 02621_ R-06 Scavenger collects Flight Unit. 02622_ K-01 Serf collects debris. 02637_ G-47 Trooper destroyed. 02639_ K-01 Serf collects debris. 02640_ Y-45 Defender destroyed. 02644_ Acquired 48 matter. 02645_ U-05 Engineer builds a Wall. 02645_ Acquired 8 matter. 02654_ Acquired Lrg. Storage Unit. 02662_ U-05 Engineer builds a Wall. Map ----- +----------------------------------------------------+ | ?????????????????????????????????????????????????? | | ?????????????????????????????????????????????????? | | ?????????????????????????????????????????????????? | | ?????????????????????????????????????????????????? | | ?????????????????????????????#####???????????????? | | ?????????????????????????????# ##########??????? | | ?????????????????????????????# # """ % #??????? | | ?????????????????????????????# # "R" #??????? | | ?????????????????????????????# # " " #??????? | | ?????????????????????????????# #% #??????? | | ???????????????????????????#?# +% %#??????? | | ??????????????????????????? ## %%#= """ #??????? | | ??????????????????????????? ## # """ /??????? | | ?????????????????????????? ## # """ #??????? | | ??????????????????????"??? ## [# #??????? | | ?????????????????????""??? ?# %##########??????? | | ??????????????????? ?"" ?? ?# =#???????????????? | | ??????????????????? """ ?? ?#w ##??????????????? | | ????????????????????? ?? ## % ##??????????????? | | ?????????????##########+##### #??????????????? | | ???????????? % u[ =#??????????????? | | ???????????? =%! |%#??????????????? | | ???????????? ^ %a= *%########### | | ??????????????# #### # | | ?????????????????????#! !################# | | ?????????????????????#! @ !#????????????????????? | | ?????????????????????##! !!##????????????????????? | | ??????????????????????######?????????????????????? | | ?????????????????????????????????????????????????? | | ?????????????????????????????????????????????????? | | ?????????????????????????????????????????????????? | | ?????????????????????????????????????????????????? | | ?????????????????????????????????????????????????? | | ?????????????????????????????????????????????????? | | ?????????????????????????????????????????????????? | | ?????????????????????????????????????????????????? | | ?????????????????????????????????????????????????? | | ?????????????????????????????????????????????????? | | ?????????????????????????????????????????????????? | | ?????????????????????????????????????????????????? | | ?????????????????????????????????????????????????? | | ?????????????????????????????????????????????????? | | ?????????????????????????????????????????????????? | | ?????????????????????????????????????????????????? | | ?????????????????????????????????????????????????? | | ?????????????????????????????????????????????????? | | ?????????????????????????????????????????????????? | | ?????????????????????????????????????????????????? | | ?????????????????????????????????????????????????? | | ?????????????????????????????????????????????????? | +----------------------------------------------------+ Best States ------------- Heat Dissipation 53 Energy Generation 10 Energy Capacity 250 Matter Stores 300 Matter Capacity 300 Sight Range 16 Terrain Scan Density 10 Resistance: KI 20 Resistance: TH 20 Resistance: EX 20 Resistance: EM 20 Resistance: I 20 Resistance: S 20 Resistance: P 20 Evasion (%) 40 Offensive Hacking 10 Item Schematics ----------------- None Robot Schematics ------------------ None Fabricated ------------ Nothing Alien Tech Used ----------------- None Achievements -------------- None Challenges ------------ None Game ------ Seed BehemothHeavyTreads Manual? 0 Play Time 00:24:54 Cumulative 22.4 hours Start 2020.10.12 @ 10:04:35 End 2020.10.13 @ 14:36:22 Sessions 3 Manual Loads 0 Difficulty Adventurer Special Mode None Game No. 40 Rogue 23 Adventurer 17 Explorer 0 Win Type - Total 0 Types 0/0/0/0/0/0/0/0/0 Lore% 24 Gallery% 30 Achievement% 30 Wizard Run 0 Options --------- ASCII 0 Keyboard 0 Movement Arrows Keybinds 0 Fullscreen 2 Font 32/Terminus Map View 63x52 Tactical HUD 1 Map Filters NONE Filters NONE Steam 1 RUN: 6879ebec-b814-490e-b41c-5eca8d54efa7